bitfinex-derivatives/quotes_SOLF0:USTF0_20250625
["timestamp","ask_amount","ask_price","bid_price","bid_amount"]
[1750821903999,5.02124878,146.24,146.18,4.5141]
[1750821904000,5.02125855,146.23,146.18,4.5141]
[1750821904205,39.06125855,146.22,146.16,34.08]
[1750821904413,5.02125855,146.21,146.15,16.08104712]
[1750821904610,6.8365,146.2,146.17,6.8375]
[1750821905711,6.8362,146.21,146.18,6.8372]
[1750821909512,5.01182955,146.2,146.18,6.8372]
[1750821909712,6.8362,146.21,146.18,6.8372]
[1750821909913,6.8362,146.21,146.11,17.04423581]
[1750821909914,9.44578077,146.2,146.1,12.71249418]
[1750821910109,12.81366316,146.19,146.1,16.08037657]
[1750821910419,43.48578077,146.18,146.11,12.71249418]
[1750821910620,5.01197143,146.17,146.11,16.08128104]
[1750821910816,34.04,146.18,146.15,6.8387]
[1750821911021,5.00810617,146.17,146.15,6.8387]
[1750821911221,34.04,146.18,146.15,6.8387]
[1750821911416,5.00810617,146.17,146.13,3.36878686]
[1750821911615,40.8775,146.18,146.13,3.36878686]
[1750821911616,34.04,146.19,146.13,16.08128104]
[1750821911821,5.00749231,146.18,146.13,16.08128104]
[1750821912114,34.04,146.19,146.13,3.36878686]
[1750821912319,5.00685425,146.18,146.13,3.36878686]
[1750821912521,34.04,146.19,146.12,19.84109418]
[1750821912822,5.00699699,146.18,146.12,19.84109418]
[1750821913018,6.8377,146.18,146.12,19.84109418]
[1750821913520,6.8377,146.18,146.14,6.8389]
[1750821913721,6.8377,146.18,146.12,19.84109418]
[1750821914315,6.8377,146.18,146.15,6.8384]
[1750821915420,6.8377,146.18,146.16,6.8382]
[1750821915626,34.04,146.19,146.13,3.36878686]
[1750821915814,4.9921595,146.2,146.15,3.36878686]
[1750821916118,624.66,146.23,146.17,3.36878686]
[1750821916119,11.82745366,146.22,146.17,3.36878686]
[1750821916321,6.8357,146.22,146.17,3.36878686]
[1750821916519,624.66,146.23,146.2,6.8363]
[1750821916719,4.99150702,146.22,146.2,6.8363]
[1750821916919,631.4953,146.23,146.2,6.8363]
[1750821917221,4.99150757,146.22,146.2,6.8363]
[1750821917418,597.4553,146.23,146.2,6.8363]
[1750821917622,631.4953,146.23,146.2,6.8363]
[1750821917826,624.66,146.23,146.21,6.8359]
[1750821918126,34.04,146.23,146.21,6.8359]
[1750821918514,34.04,146.23,146.22,6.8354]
[1750821918818,39.04199476,146.23,146.22,6.8354]
[1750821920522,34.04,146.23,146.22,6.8354]
[1750821923123,34.04,146.23,146.21,6.8357]
[1750821924423,40.875,146.23,146.2,6.8362]
[1750821925312,34.04,146.23,146.21,6.8359]
[1750821926217,34.04,146.23,146.22,6.8354]
[1750821926422,6.834,146.26,146.19,3.36878686]
[1750821926423,40.874,146.26,146.19,3.36878686]
[1750821926625,5.02818172,146.25,146.22,6.8351]
[1750821926826,45.36850794,146.26,146.21,3.36878686]
[1750821926827,34.04,146.26,146.21,3.36878686]
[1750821927323,34.04,146.26,146.24,6.8342]
[1750821928124,34.04,146.26,146.25,6.834]
[1750821930528,4.49398462,146.28,146.27,6.8331]
[1750821930732,624.74,146.3,146.23,5.56798686]
[1750821930926,624.74,146.3,146.25,3.36878686]
[1750821931120,34.04,146.3,146.25,3.36878686]
[1750821931929,34.04,146.3,146.29,6.8322]
[1750821932224,40.8717,146.3,146.27,6.8329]
[1750821932728,34.04,146.3,146.28,6.8325]
[1750821933433,34.04,146.3,146.29,6.8322]
[1750821933619,34.04,146.3,146.25,3.36878686]
[1750821933620,37.40878686,146.33,146.25,3.36878686]
[1750821933928,37.40878686,146.33,146.23,4.4041]
[1750821933929,34.04,146.33,146.32,6.8308]
[1750821934131,34.04,146.33,146.27,3.36878686]
[1750821934429,34.04,146.33,146.28,2.3122]
[1750821935523,34.04,146.33,146.31,6.8312]
[1750821935924,34.04,146.33,146.32,6.8308]
[1750821936130,39.08759935,146.33,146.32,6.8308]
[1750821937525,5.04759935,146.33,146.32,6.8308]
[1750821937727,40.849,146.36,146.29,3.36878686]
[1750821937728,5.04759935,146.35,146.33,6.8303]
[1750821938035,5.04656983,146.35,146.33,6.8303]
[1750821938229,40.849,146.36,146.33,6.8303]
[1750821938436,45.89526849,146.36,146.33,6.8303]
[1750821938639,40.849,146.36,146.33,6.8303]
[1750821939233,40.849,146.36,146.29,7.86838686]
[1750821939425,34.02,146.36,146.29,4.4996]
[1750821939630,8.4141679,146.35,146.3,6.8314]
[1750821940138,6.8306,146.33,146.3,6.8314]
[1750821940331,8.4141679,146.35,146.31,6.8312]
[1750821940828,3.36878686,146.35,146.31,6.8312]
[1750821941029,6.8301,146.34,146.31,6.8312]
[1750821941734,10.19828686,146.35,146.31,6.8312]
[1750821942438,3.36878686,146.35,146.32,6.8306]
[1750821942935,6.8302,146.34,146.31,6.8309]
[1750821943131,3.36878686,146.35,146.28,2.3122]
[1750821943735,6.8306,146.33,146.3,6.8315]
[1750821945932,6.83,146.34,146.31,6.8312]
[1750821947339,6.8303,146.33,146.3,6.8315]
[1750821947833,6.8303,146.33,146.29,6.8319]
[1750821948337,6.8303,146.33,146.28,2.3122]
[1750821948540,6.83,146.34,146.28,2.3122]
[1750821948736,37.38878686,146.36,146.28,2.3122]
[1750821949233,6.8296,146.35,146.31,6.831]
[1750821949740,40.8491,146.36,146.29,3.36878686]
[1750821950440,40.8491,146.36,146.29,7.86838686]
[1750821950933,6.8295,146.35,146.29,4.4996]
[1750821951241,6.8295,146.35,146.32,6.8306]
[1750821951537,44.21788686,146.36,146.29,4.4996]
[1750821951739,37.38878686,146.36,146.29,4.4996]
[1750821952139,44.21778686,146.36,146.29,4.4996]
[1750821952636,37.38878686,146.36,146.29,4.4996]
[1750821954039,6.8294,146.35,146.31,6.8312]
[1750821954341,6.8294,146.35,146.29,4.4996]
[1750821955735,6.8299,146.34,146.31,6.8309]
[1750821956332,6.8295,146.35,146.32,6.8308]
[1750821957944,6.8299,146.34,146.31,6.8311]
[1750821958344,37.38878686,146.36,146.28,5.68098686]
[1750821958640,6.8296,146.35,146.28,5.68098686]
[1750821958839,37.38878686,146.36,146.28,5.68098686]
[1750821959435,6.8299,146.34,146.31,6.8309]
[1750821959637,37.38878686,146.36,146.31,6.8309]
[1750821959945,3.36878686,146.34,146.26,34.04]
[1750821960137,3.36878686,146.34,146.25,4.5104]
[1750821960138,3.36878686,146.32,146.25,2.2027]
[1750821960339,34.0,146.31,146.24,2.3132]
[1750821960838,6.8317,146.3,146.27,6.8327]
[1750821961745,34.0,146.31,146.25,3.36878686]
[1750821962242,34.0,146.31,146.25,5.64878686]
[1750821962441,34.0,146.31,146.3,6.8317]
[1750821964637,34.0,146.31,146.29,6.832]
[1750821965046,6.8318,146.3,146.27,6.8328]
[1750821965341,6.8318,146.3,146.24,2.3132]
[1750821965342,3.36878686,146.3,146.24,2.3132]
[1750821965843,6.8324,146.29,146.24,2.3132]
[1750821966139,10.20068686,146.3,146.27,6.833]
[1750821966346,3.36878686,146.3,146.27,6.833]
[1750821966839,10.20068686,146.3,146.27,6.833]
[1750821967746,6.8322,146.29,146.26,6.8333]
[1750821967945,3.36878686,146.3,146.22,3.36878686]
[1750821968138,3.36878686,146.3,146.2,12.71249418]
[1750821968139,3.36878686,146.28,146.2,37.38878686]
[1750821968338,3.36878686,146.28,146.22,6.8352]
[1750821968339,6.834,146.26,146.22,6.8352]
[1750821968837,6.8341,146.25,146.22,6.8352]
[1750821969036,34.02,146.27,146.22,3.36878686]
[1750821969437,34.02,146.27,146.21,3.36878686]
[1750821969638,34.02,146.27,146.24,6.8342]
[1750821970037,34.02,146.27,146.25,6.8339]
[1750821971939,34.02,146.27,146.21,3.36878686]
[1750821971940,34.02,146.27,146.26,6.8336]
[1750821972442,34.02,146.27,146.21,3.36878686]
[1750821973841,34.02,146.27,146.25,6.8339]
[1750821974142,40.8532,146.27,146.21,3.36878686]
[1750821974539,40.8532,146.27,146.24,6.8342]
[1750821976151,40.8532,146.27,146.21,16.08128104]
[1750821976152,40.8532,146.27,146.25,6.834]
[1750821979155,34.02,146.27,146.25,6.834]
[1750821979356,37.38878686,146.27,146.2,46.73249418]
[1750821979541,37.38878686,146.27,146.2,34.02]
[1750821979856,3.36878686,146.25,146.21,6.8356]
[1750821980252,10.20318686,146.25,146.21,6.8356]
[1750821980552,3.36878686,146.25,146.21,6.8356]
[1750821980869,6.8348,146.24,146.21,6.8356]
[1750821982861,10.20308686,146.25,146.22,6.8354]
[1750821983557,44.22208686,146.27,146.18,3.36878686]
[1750821984147,44.22208686,146.27,146.24,6.8344]
[1750821985652,5.04118869,146.26,146.24,6.8344]
[1750821985860,44.22208686,146.27,146.24,6.8344]
[1750821986370,37.38878686,146.27,146.25,6.834]
[1750821987271,34.02,146.27,146.26,6.8336]
[1750821987459,34.02,146.27,146.21,6.7654]
[1750821988873,40.8531,146.27,146.24,6.8342]
[1750821996179,13.9308,146.31,146.22,3.36878686]
[1750821996376,34.06,146.3,146.22,3.36878686]
[1750821996568,3.36878686,146.29,146.21,40.8254]
[1750821996764,3.36878686,146.27,146.19,12.71249418]
[1750821996976,3.36878686,146.25,146.18,50.14128104]
[1750821997184,40.8945,146.24,146.21,6.8356]
[1750821998981,34.06,146.24,146.21,6.8356]
[1750822001068,40.8946,146.24,146.21,6.8356]
[1750822004676,6.835,146.23,146.2,6.8361]
[1750822007084,3.36878686,146.22,146.19,6.8368]
[1750822007383,3.36878686,146.22,146.16,100.81862825]
[1750822007688,3.36878686,146.22,146.14,16.08128104]
[1750822008287,6.8371,146.19,146.16,6.8379]
[1750822008584,40.9771,146.19,146.16,6.8379]
[1750822010283,40.9771,146.19,146.11,12.71249418]
[1750822010284,8.39339646,146.18,146.11,12.71249418]
[1750822010477,3.36878686,146.18,146.11,12.71249418]
[1750822010785,6.8387,146.16,146.12,6.8396]
[1750822011785,6.8387,146.16,146.13,6.8396]
[1750822012288,6.838,146.17,146.13,6.8396]
[1750822013377,16.11878686,146.18,146.12,6.8399]
[1750822013691,16.11878686,146.18,146.1,2.3312]
[1750822013692,3.36878686,146.16,146.1,2.3312]
[1750822013887,34.16,146.15,146.09,37.52878686]
[1750822014387,40.9989,146.15,146.11,6.8402]
[1750822014581,40.9989,146.15,146.09,37.52878686]
[1750822015181,6.8392,146.14,146.09,37.52878686]
[1750822015381,34.16,146.15,146.07,12.71249418]
[1750822015382,34.16,146.15,146.07,3.36878686]
[1750822015782,40.9989,146.15,146.07,3.36878686]
[1750822016487,34.16,146.15,146.07,3.36878686]
[1750822016990,3.36878686,146.14,146.07,3.36878686]
[1750822017888,10.20838686,146.14,146.1,6.8407]
[1750822018090,3.36878686,146.14,146.1,6.8407]
[1750822019292,6.8399,146.13,146.1,6.8407]
[1750822019488,3.36878686,146.14,146.06,44.52578686]
[1750822019795,37.52878686,146.15,146.06,44.52578686]
[1750822019985,37.52878686,146.15,146.14,6.8392]
[1750822019986,34.16,146.15,146.14,6.8392]
[1750822020186,34.16,146.15,146.1,3.36878686]
[1750822020783,34.16,146.15,146.13,6.8394]
[1750822022093,34.16,146.15,146.14,6.8392]
[1750822023392,46.91,146.18,146.16,6.838]
[1750822025593,53.7473,146.18,146.15,6.8385]
[1750822025896,50.27878686,146.18,146.11,4.6854]
[1750822027696,6.838,146.17,146.14,6.839]
[1750822027990,3.36878686,146.16,146.08,3.36878686]
[1750822028394,6.8394,146.14,146.11,6.8403]
[1750822028596,34.16,146.13,146.11,6.8403]
[1750822030698,34.18,146.16,146.1,3.36878686]
[1750822031194,34.18,146.16,146.14,6.8389]
[1750822032394,34.18,146.16,146.15,6.8387]
[1750822032595,19.5875,146.18,146.15,6.8387]
[1750822032796,19.5875,146.18,146.16,6.8382]
[1750822033696,19.5875,146.18,146.15,6.8385]
[1750822035198,12.75,146.18,146.16,6.8382]
[1750822037093,12.75,146.18,146.17,6.8378]
[1750822037799,12.75,146.18,146.16,6.838]
[1750822041497,12.75,146.18,146.13,3.36878686]
[1750822041695,12.75,146.18,146.17,6.8378]
[1750822051909,12.75,146.18,146.16,6.8381]
[1750822052115,34.18,146.19,146.16,6.8381]
[1750822052306,41.0171,146.19,146.16,6.8381]
[1750822052511,41.0171,146.19,146.17,6.8377]
[1750822053408,34.18,146.19,146.17,6.8377]
[1750822054508,41.0169,146.19,146.17,6.8377]
[1750822055617,41.0169,146.19,146.16,6.838]
[1750822062516,11.83932319,146.18,146.15,6.8384]
[1750822062716,6.8374,146.18,146.15,6.8384]
[1750822063505,5.0020539,146.17,146.15,6.8384]
[1750822063709,6.8374,146.18,146.16,6.8382]
[1750822065929,41.0171,146.19,146.16,6.8382]
[1750822066122,5.00386884,146.18,146.16,6.8382]
[1750822066322,41.0171,146.19,146.16,6.8382]
[1750822066526,5.00386884,146.18,146.16,6.8382]
[1750822066726,41.0171,146.19,146.16,6.8382]
[1750822066921,5.00386884,146.18,146.16,6.8382]
[1750822067229,41.0171,146.19,146.16,6.8382]
[1750822067434,5.00386884,146.18,146.16,6.8382]
[1750822067728,41.0171,146.19,146.16,6.8382]
[1750822067925,5.00386884,146.18,146.16,6.8382]
[1750822068129,41.0171,146.19,146.16,6.8382]
[1750822068319,5.00409771,146.18,146.16,6.8382]
[1750822068521,41.0171,146.19,146.16,6.8382]
[1750822068829,5.00459161,146.18,146.16,6.8382]
[1750822069031,41.0171,146.19,146.16,6.8382]
[1750822069230,5.00462709,146.18,146.16,6.8382]
[1750822069530,41.0171,146.19,146.16,6.8382]
[1750822069730,5.00462709,146.18,146.16,6.8382]
[1750822069930,41.0171,146.19,146.16,6.8382]
[1750822070132,11.83819216,146.18,146.16,6.8382]
[1750822070326,6.8373,146.18,146.16,6.8382]
[1750822070733,5.00090194,146.17,146.16,6.8382]
[1750822071333,6.8373,146.18,146.16,6.8382]
[1750822073139,6.8373,146.18,146.15,6.8385]
[1750822073831,5.00194296,146.17,146.15,6.8385]
[1750822074134,6.8373,146.18,146.15,6.8385]
[1750822074334,5.00611956,146.17,146.15,6.8385]
[1750822074529,6.8373,146.18,146.15,15.31911716]
[1750822074729,5.00608405,146.17,146.15,15.31911716]
[1750822074928,5.00608405,146.16,146.14,8.48061716]
[1750822075124,3.36814414,146.18,146.12,8.48061716]
[1750822076131,6.838,146.17,146.14,6.8392]
[1750822076333,3.36814414,146.18,146.12,8.48061716]
[1750822076534,3.36814414,146.18,146.13,8.48061716]
[1750822076726,6.8378,146.17,146.14,6.8389]
[1750822076922,3.36814414,146.18,146.13,8.48061716]
[1750822077223,55.3371,146.19,146.16,6.8381]
[1750822078133,9.46413754,146.18,146.16,6.8381]
[1750822078434,9.46413754,146.17,146.16,6.8381]
[1750822079336,9.46413754,146.17,146.15,6.8385]
[1750822079527,5.00876894,146.16,146.15,6.8385]
[1750822080036,5.00825123,146.16,146.15,6.8385]
[1750822082331,6.8373,146.18,146.15,6.8385]
[1750822083134,48.5,146.19,146.14,8.48061716]
[1750822083332,3.36814414,146.18,146.14,8.48061716]
[1750822083535,3.36814414,146.18,146.13,8.48061716]
[1750822083736,3.36814414,146.18,146.13,15.32021716]
[1750822083737,5.0112146,146.16,146.13,15.32021716]
[1750822083929,3.36814414,146.18,146.13,8.48061716]
[1750822084136,6.8387,146.16,146.12,15.32041716]
[1750822084340,5.01165118,146.15,146.12,15.32041716]
[1750822084533,5.01168056,146.14,146.12,15.32041716]
[1750822084741,4.45169164,146.17,146.12,8.48061716]
[1750822084939,3.36814414,146.18,146.12,8.48061716]
[1750822085842,6.8383,146.16,146.13,6.8394]
[1750822086846,4.97726412,146.15,146.14,6.8391]
[1750822087234,4.97726412,146.15,146.13,6.8394]
[1750822087438,6.8385,146.16,146.13,6.8394]
[1750822087639,4.97767139,146.15,146.13,6.8394]
[1750822087939,6.8385,146.16,146.13,6.8394]
[1750822088141,4.97763605,146.15,146.13,6.8394]
[1750822088443,6.8387,146.15,146.12,15.32041716]
[1750822088637,40.9187,146.15,146.12,15.32041716]
[1750822089145,34.08,146.15,146.12,8.48061716]
[1750822089744,34.08,146.15,146.13,15.31991716]
[1750822092242,34.08,146.15,146.14,6.8392]
[1750822093346,39.04516664,146.15,146.14,6.8392]
[1750822093536,34.08,146.15,146.14,6.8392]
[1750822093844,40.9188,146.15,146.13,15.32011716]
[1750822094036,40.9188,146.15,146.13,6.8395]
[1750822094235,4.96487178,146.14,146.11,8.48061716]
[1750822094544,7.1217555,146.13,146.09,10.86461716]
[1750822094745,7.1217555,146.12,146.09,8.48061716]
[1750822094944,4.96631136,146.11,146.09,15.32181716]
[1750822095250,2.15688372,146.12,146.09,6.8412]
[1750822095444,13.96484128,146.11,146.08,15.32241716]
[1750822095747,13.96484128,146.11,146.08,6.8418]
[1750822095748,4.9679027,146.1,146.08,6.8418]
[1750822096055,6.841,146.1,146.07,15.32271716]
[1750822096437,6.841,146.1,146.07,8.48061716]
[1750822096438,3.371831,146.1,146.07,8.48061716]
[1750822096638,3.371831,146.1,146.05,17.20939418]
[1750822096639,4.96859476,146.09,146.05,8.48061716]
[1750822096844,4.96859476,146.08,146.04,8.48061716]
[1750822097151,50.32931996,146.07,146.03,15.32461716]
[1750822097351,4.96918154,146.06,146.03,6.844]
[1750822097550,4.96918154,146.05,146.03,6.844]
[1750822097751,34.08,146.07,146.03,6.844]
[1750822098152,40.9227,146.07,146.03,6.844]
[1750822098347,40.9227,146.07,146.04,6.8436]
[1750822099154,40.9227,146.07,146.03,6.8441]
[1750822100243,40.9227,146.07,146.04,6.8438]
[1750822101763,14.06,146.06,146.04,6.8438]
[1750822104853,14.06,146.06,146.05,6.8434]
[1750822105252,14.06,146.06,146.01,5.628731]
[1750822105559,14.06,146.06,146.04,6.8435]
[1750822111463,14.06,146.06,146.05,6.8434]
[1750822111770,34.08,146.12,146.05,3.371831]
[1750822112264,6.8408,146.11,146.08,6.8419]
[1750822113871,40.9202,146.12,146.09,6.8414]
[1750822114063,34.08,146.12,146.05,3.371831]
[1750822114867,6.8406,146.11,146.07,6.8424]
[1750822115775,3.371831,146.09,146.03,37.451831]
[1750822115965,34.08,146.08,146.01,5.628731]
[1750822116167,6.8424,146.07,146.01,5.628731]
[1750822116472,6.8424,146.07,146.04,6.8436]
[1750822122467,6.8424,146.07,146.05,6.8434]
[1750822122664,40.9222,146.08,146.05,6.8434]
[1750822127785,40.9222,146.08,146.01,14.10934816]
[1750822128285,34.08,146.08,146.02,8.48061716]
[1750822128477,34.08,146.08,146.06,6.8426]
[1750822129472,40.922,146.08,146.06,6.8426]
[1750822129781,40.922,146.08,146.05,6.8432]
[1750822129975,34.08,146.08,146.05,6.8432]
[1750822130280,6.8428,146.07,146.01,14.10934816]
[1750822130583,6.8428,146.07,146.05,6.8433]
[1750822130979,34.08,146.08,146.01,10.73751716]
[1750822131181,34.08,146.08,146.01,14.10934816]
[1750822131381,34.08,146.08,146.04,6.8435]
[1750822132685,6.8427,146.07,146.04,6.8435]
[1750822133483,6.843,146.06,146.03,6.844]
[1750822138492,6.843,146.06,146.03,15.32461716]
[1750822138993,4.93455716,146.05,146.03,15.32461716]
[1750822139195,6.843,146.06,146.03,15.32461716]
[1750822139392,4.93459253,146.05,146.03,15.32461716]
[1750822139596,6.843,146.06,146.04,6.8439]
[1750822140601,11.77056585,146.05,146.03,8.48061716]
[1750822140804,4.92706585,146.04,146.02,8.48061716]
[1750822141298,6.8436,146.05,146.02,15.32531716]
[1750822141494,4.92653848,146.04,146.02,15.32531716]
[1750822141700,6.8439,146.04,146.02,8.48061716]
[1750822141993,40.9239,146.04,146.02,8.48061716]
[1750822144106,34.08,146.04,146.02,8.48061716]
[1750822146507,34.08,146.07,146.03,8.48061716]
[1750822146695,4.88543463,146.06,146.03,8.48061716]
[1750822146898,40.9228,146.07,146.04,6.8437]
[1750822147097,4.88551205,146.06,146.04,6.8437]
[1750822147303,40.9228,146.07,146.04,6.8437]
[1750822147502,4.88553156,146.06,146.04,6.8437]
[1750822147708,40.9228,146.07,146.04,6.8437]
[1750822147907,4.88537832,146.06,146.04,6.8437]
[1750822148098,40.9228,146.07,146.04,6.8437]
[1750822148299,4.88528761,146.06,146.04,6.8437]
[1750822148512,40.9228,146.07,146.04,6.8437]
[1750822148802,4.88154328,146.06,146.04,6.8437]
[1750822149007,40.9228,146.07,146.04,6.8437]
[1750822149216,4.881634,146.06,146.04,6.8437]
[1750822149404,40.9228,146.07,146.04,6.8437]
[1750822149604,4.88189832,146.06,146.04,6.8437]
[1750822149808,40.9228,146.07,146.04,6.8437]
[1750822150006,4.88189831,146.06,146.04,6.8437]
[1750822150203,40.9228,146.07,146.04,6.8437]
[1750822150403,4.88189831,146.06,146.04,6.8437]
[1750822150602,4.88189831,146.06,146.03,8.48061716]
[1750822150603,34.08,146.07,146.05,6.8434]
[1750822150804,4.88149068,146.06,146.05,6.8434]
[1750822151111,4.88149068,146.06,146.04,6.8436]
[1750822151412,40.9225,146.07,146.04,6.8436]
[1750822151613,4.88149021,146.06,146.04,6.8436]
[1750822151913,40.9225,146.07,146.04,6.8436]
[1750822152103,4.88129134,146.06,146.04,6.8436]
[1750822152410,40.9225,146.07,146.04,6.8436]
[1750822152612,4.88158502,146.06,146.05,6.8434]
[1750822154808,4.88908366,146.06,146.04,6.8436]
[1750822155003,40.9225,146.07,146.04,6.8436]
[1750822155203,4.88908366,146.06,146.04,6.8436]
[1750822155506,40.9225,146.07,146.04,6.8436]
[1750822155705,4.88908366,146.06,146.04,6.8436]
[1750822155909,40.9225,146.07,146.04,6.8436]
[1750822156105,4.89282714,146.06,146.04,6.8436]
[1750822156314,43.0815784,146.07,146.04,6.8436]
[1750822156510,4.89282714,146.06,146.04,6.8436]
[1750822156709,43.0815784,146.07,146.04,6.8436]
[1750822156913,4.89434786,146.06,146.04,6.8436]
[1750822157112,43.0815784,146.07,146.04,6.8436]
[1750822157309,4.89431271,146.06,146.04,6.8436]
[1750822157510,43.0815784,146.07,146.04,6.8436]
[1750822157709,4.89431271,146.06,146.04,6.8436]
[1750822157910,43.0815784,146.07,146.04,6.8436]
[1750822158109,4.89434786,146.06,146.04,6.8436]
[1750822158310,43.0815784,146.07,146.04,6.8436]
[1750822158511,4.89434786,146.06,146.04,6.8436]
[1750822158811,43.0815784,146.07,146.04,6.8436]
[1750822159013,4.89434786,146.06,146.04,6.8436]
[1750822159204,43.0815784,146.07,146.04,6.8436]
[1750822159405,4.89676489,146.06,146.04,15.32421716]
[1750822159610,43.0815784,146.07,146.04,15.32421716]
[1750822159901,4.89672973,146.06,146.04,15.32421716]
[1750822160103,43.0815784,146.07,146.04,15.32421716]
[1750822160311,7.0560952,146.06,146.04,15.32421716]
[1750822160509,2.1590784,146.06,146.04,15.32421716]
[1750822166918,2.15923608,146.06,146.04,15.32421716]
[1750822168620,9.00223608,146.06,146.04,8.48061716]
[1750822168916,4.89769428,146.05,146.03,8.48061716]
[1750822169118,2.15923608,146.06,146.03,8.48061716]
[1750822169416,11.74139708,146.05,146.03,8.48061716]
[1750822169612,4.89799708,146.04,146.02,8.48061716]
[1750822169922,9.00233608,146.06,146.03,6.8443]
[1750822170220,11.45055631,146.05,146.03,6.8443]
[1750822170416,4.8941145,146.04,146.03,6.8443]
[1750822170820,4.8941145,146.04,146.03,15.32491716]
[1750822171724,4.8941145,146.04,146.03,6.8443]
[1750822174025,4.8941145,146.04,146.02,15.32521716]
[1750822174221,2.15923608,146.05,146.02,8.48061716]
[1750822174421,4.89604717,146.04,146.02,8.48061716]
[1750822174628,6.8439,146.04,146.03,8.48061716]
[1750822174825,4.89600947,146.04,146.03,8.48061716]
[1750822175228,4.89599259,146.04,146.03,8.48061716]
[1750822177723,11.73979259,146.04,146.03,8.48061716]
[1750822177923,13.89902867,146.04,146.02,8.48061716]
[1750822178124,4.89249787,146.03,146.02,8.48061716]
[1750822179328,13.89603395,146.03,146.02,8.48061716]
[1750822179523,13.89603395,146.03,146.01,8.48061716]
[1750822179729,2.15923608,146.02,146.01,8.48061716]
[1750822180023,43.08463219,146.03,146.01,8.48061716]
[1750822180230,34.08,146.03,146.01,10.64094935]
[1750822180528,2.16033219,146.04,146.02,8.48061716]
[1750822180726,13.89217288,146.03,146.01,8.48061716]
[1750822180933,9.00444977,146.03,146.01,8.48061716]
[1750822183534,2.16014977,146.03,146.01,15.32581716]
[1750822184828,9.00424977,146.04,146.01,15.32581716]
[1750822185029,4.88201764,146.03,146.01,15.32581716]
[1750822185232,9.00424977,146.04,146.01,15.32581716]
[1750822185426,4.88201717,146.03,146.02,6.8448]
[1750822185628,36.23947968,146.06,146.02,8.48061716]
[1750822185825,9.26954725,146.05,146.02,8.48061716]
[1750822186028,4.88189033,146.04,146.03,6.8443]
[1750822186629,43.08267968,146.06,146.03,6.8443]
[1750822186827,4.88144474,146.05,146.03,6.8443]
[1750822187034,2.15947968,146.05,146.03,6.8443]
[1750822187932,4.88166601,146.04,146.03,6.8443]
[1750822188140,36.23947968,146.06,146.03,15.32491716]
[1750822188331,4.88118989,146.05,146.03,15.32491716]
[1750822188536,36.23947968,146.06,146.03,15.32491716]
[1750822188732,4.88138041,146.05,146.03,15.32491716]
[1750822189040,2.15947968,146.05,146.03,15.32491716]
[1750822189740,7.04092427,146.04,146.02,8.48061716]
[1750822189927,7.04100268,146.03,146.01,8.48061716]
[1750822190223,2.15947968,146.02,146.01,8.48061716]
[1750822190627,2.15947968,146.02,146.0,8.48061716]
[1750822190828,2.15947968,146.01,146.0,8.48061716]
[1750822193035,43.06457968,146.02,146.0,8.48061716]
[1750822196033,9.00477968,146.01,145.99,8.48061716]
[1750822196840,2.15947968,146.0,145.98,8.48061716]
[1750822197041,7.03518143,145.99,145.96,8.48061716]
[1750822197230,2.15947968,145.97,145.95,8.48061716]
[1750822198340,2.15947968,145.97,145.95,15.32861716]
[1750822198841,2.15947968,145.97,145.95,6.848]
[1750822200329,53.8467,145.98,145.95,6.848]
[1750822201946,47.0,145.98,145.96,6.8474]
[1750822202143,47.0,145.98,145.94,8.48061716]
[1750822203135,47.0,145.98,145.96,6.8473]
[1750822203545,47.0,145.98,145.95,8.48061716]
[1750822204047,47.0,145.98,145.97,6.8471]
[1750822205441,47.0,145.98,145.96,15.32801716]
[1750822205648,47.0,145.98,145.94,8.48061716]
[1750822206043,6.8474,145.97,145.94,15.32881716]
[1750822206243,6.8474,145.97,145.95,8.48061716]
[1750822206546,47.0,145.98,145.96,6.8473]
[1750822206854,47.0,145.98,145.95,8.48061716]
[1750822207245,53.8467,145.98,145.95,6.8478]